[Event "*** Titled Tuesday Blitz AM"]
[Site "Chess.com"]
[Date "2020.01.07"]
[Round "1"]
[White "elpepinillo14"]
[Black "yy2324"]
[Result "0-1"]
[WhiteElo "2649"]
[BlackElo "2601"]
[TimeControl "180+2"]
[EndTime "9:06:55 PST"]
[Termination "yy2324 won by resignation"]

1. e4 {[%clk 0:03:01.1]} 1... c5 {[%clk 0:02:57.3]} 2. Nc3 {[%clk 0:03:02.3]}
2... Nc6 {[%clk 0:02:58.1]} 3. g3 {[%clk 0:03:03.8]} 3... g6 {[%clk 0:02:58.8]}
4. Bg2 {[%clk 0:03:05.2]} 4... Bg7 {[%clk 0:03:00.1]} 5. d3 {[%clk 0:03:06.6]}
5... e6 {[%clk 0:03:00.7]} 6. Be3 {[%clk 0:03:07.8]} 6... d6 {[%clk 0:03:01.4]}
7. Qd2 {[%clk 0:03:08.9]} 7... Nge7 {[%clk 0:03:02]} 8. Bh6 {[%clk 0:03:08.9]}
8... Bxh6 {[%clk 0:02:52.6]} 9. Qxh6 {[%clk 0:03:10.1]} 9... Nd4 {[%clk
0:02:53.9]} 10. O-O-O {[%clk 0:03:10.2]} 10... Nec6 {[%clk 0:02:55]} 11. Qg7
{[%clk 0:03:09.5]} 11... Ke7 {[%clk 0:02:50.1]} 12. Qh6 {[%clk 0:03:08]} 12...
Qf8 {[%clk 0:02:48.2]} 13. Qg5+ {[%clk 0:03:06.5]} 13... f6 {[%clk 0:02:42.8]}
14. Qe3 {[%clk 0:03:06.8]} 14... Bd7 {[%clk 0:02:41.2]} 15. Nce2 {[%clk
0:03:07.4]} 15... e5 {[%clk 0:02:33]} 16. c3 {[%clk 0:03:07.6]} 16... Nxe2+
{[%clk 0:02:14]} 17. Nxe2 {[%clk 0:03:09.5]} 17... Qf7 {[%clk 0:02:15.3]} 18.
Kb1 {[%clk 0:03:09.8]} 18... Be6 {[%clk 0:02:12.6]} 19. a3 {[%clk 0:02:53.7]}
19... Kf8 {[%clk 0:02:07]} 20. d4 {[%clk 0:02:53]} 20... Bb3 {[%clk 0:02:01.9]}
21. Rc1 {[%clk 0:02:18]} 21... Kg7 {[%clk 0:01:55.7]} 22. d5 {[%clk 0:02:16.8]}
22... Na5 {[%clk 0:01:55.1]} 23. Ng1 {[%clk 0:02:12.5]} 23... Nc4 {[%clk
0:01:51.5]} 24. Qe1 {[%clk 0:02:10.8]} 24... Qd7 {[%clk 0:01:51.4]} 25. Nf3
{[%clk 0:02:07.1]} 25... Qb5 {[%clk 0:01:47.2]} 26. Rc2 {[%clk 0:01:38.2]} 26...
Bxc2+ {[%clk 0:01:31.3]} 27. Kxc2 {[%clk 0:01:40.1]} 27... Qxb2+ {[%clk
0:01:32.8]} 28. Kd3 {[%clk 0:01:40.5]} 28... Nxa3 {[%clk 0:01:32]} 29. Qc1
{[%clk 0:01:38]} 29... Qxf2 {[%clk 0:01:08]} 30. Qxa3 {[%clk 0:01:04.2]} 30...
Qxg2 {[%clk 0:01:08.3]} 31. Qc1 {[%clk 0:00:55.9]} 31... Qxf3+ {[%clk
0:01:08.3]} 32. Kd2 {[%clk 0:00:54.9]} 32... Qxe4 {[%clk 0:01:03.9]} 33. Qf1
{[%clk 0:00:54.4]} 33... Qxd5+ {[%clk 0:01:04.8]} 34. Ke1 {[%clk 0:00:54.9]}
34... Rac8 {[%clk 0:01:03.8]} 35. h4 {[%clk 0:00:54.4]} 35... Rc6 {[%clk
0:01:05.3]} 36. Rh2 {[%clk 0:00:55.3]} 36... Ra6 {[%clk 0:01:06.5]} 37. Rd2
{[%clk 0:00:55]} 37... Ra1+ {[%clk 0:01:06.8]} 0-1

[Event "*** Titled Tuesday Blitz AM"]
[Site "Chess.com"]
[Date "2020.01.07"]
[Round "1"]
[White "OneTrickPony_82"]
[Black "Alexander_Moskalenko"]
[Result "1-0"]
[WhiteElo "2454"]
[BlackElo "2786"]
[TimeControl "180+2"]
[EndTime "9:07:10 PST"]
[Termination "OneTrickPony_82 won by resignation"]

1. d4 {[%clk 0:03:01.5]} 1... Nf6 {[%clk 0:02:55.3]} 2. c4 {[%clk 0:03:02.5]}
2... e6 {[%clk 0:02:57.2]} 3. Nf3 {[%clk 0:03:03.3]} 3... d5 {[%clk 0:02:55.9]}
4. Nc3 {[%clk 0:03:03.6]} 4... Bb4 {[%clk 0:02:56.4]} 5. cxd5 {[%clk 0:03:04.6]}
5... exd5 {[%clk 0:02:56.7]} 6. Bg5 {[%clk 0:03:03.5]} 6... h6 {[%clk
0:02:57.8]} 7. Bh4 {[%clk 0:03:04.3]} 7... Bf5 {[%clk 0:02:56.9]} 8. e3 {[%clk
0:03:04.2]} 8... c6 {[%clk 0:02:57.1]} 9. Be2 {[%clk 0:03:04.3]} 9... Nbd7
{[%clk 0:02:57.5]} 10. Qb3 {[%clk 0:02:59.1]} 10... Qb6 {[%clk 0:02:55.9]} 11.
Nd2 {[%clk 0:02:44.9]} 11... Be7 {[%clk 0:02:52]} 12. O-O {[%clk 0:02:37.8]}
12... O-O {[%clk 0:02:49.7]} 13. h3 {[%clk 0:02:37.5]} 13... Bd6 {[%clk
0:02:48.6]} 14. Qxb6 {[%clk 0:02:29.3]} 14... axb6 {[%clk 0:02:49]} 15. f3
{[%clk 0:02:29.6]} 15... Rfe8 {[%clk 0:02:47.3]} 16. Bf2 {[%clk 0:02:27.9]}
16... b5 {[%clk 0:02:48.5]} 17. a3 {[%clk 0:02:20.7]} 17... Nb6 {[%clk
0:02:46.7]} 18. g4 {[%clk 0:02:08.7]} 18... Bh7 {[%clk 0:02:44.6]} 19. h4 {[%clk
0:02:09.6]} 19... h5 {[%clk 0:02:25.5]} 20. g5 {[%clk 0:02:10]} 20... Nfd7
{[%clk 0:02:27.1]} 21. e4 {[%clk 0:02:04]} 21... Nc4 {[%clk 0:02:24.8]} 22. Nxc4
{[%clk 0:02:02.8]} 22... bxc4 {[%clk 0:02:24.2]} 23. e5 {[%clk 0:01:55]} 23...
Bf8 {[%clk 0:02:25.1]} 24. f4 {[%clk 0:01:56.3]} 24... b5 {[%clk 0:02:08.4]} 25.
Bxh5 {[%clk 0:01:53.6]} 25... Bd3 {[%clk 0:02:10]} 26. Bg4 {[%clk 0:01:36.7]}
26... Nb6 {[%clk 0:02:09.1]} 27. Rfe1 {[%clk 0:01:35.5]} 27... g6 {[%clk
0:02:07]} 28. h5 {[%clk 0:01:34.7]} 28... b4 {[%clk 0:02:06.1]} 29. axb4 {[%clk
0:01:35.1]} 29... Bxb4 {[%clk 0:02:08]} 30. Rxa8 {[%clk 0:01:35.9]} 30... Nxa8
{[%clk 0:02:06.5]} 31. hxg6 {[%clk 0:01:37]} 31... fxg6 {[%clk 0:02:07.4]} 32.
Ra1 {[%clk 0:01:35]} 32... Nc7 {[%clk 0:02:08.5]} 33. Bd7 {[%clk 0:01:25.4]}
33... Rf8 {[%clk 0:02:09.3]} 34. Bxc6 {[%clk 0:01:26.3]} 34... Rxf4 {[%clk
0:02:06.6]} 35. Nxd5 {[%clk 0:01:24.3]} 35... Nxd5 {[%clk 0:01:37.8]} 36. Bxd5+
{[%clk 0:01:24.9]} 36... Kh8 {[%clk 0:01:39.2]} 37. Be6 {[%clk 0:01:14.1]} 37...
Be7 {[%clk 0:01:26.2]} 38. Ra8+ {[%clk 0:00:57.3]} 38... Kg7 {[%clk 0:01:25.6]}
39. Ra7 {[%clk 0:00:57.9]} 39... Kf8 {[%clk 0:01:26.4]} 40. d5 {[%clk
0:00:57.2]} 40... Rxf2 {[%clk 0:01:24.6]} 41. Ra8+ {[%clk 0:00:54.2]} 41... Kg7
{[%clk 0:01:26.2]} 42. Kxf2 {[%clk 0:00:55.1]} 42... Bxg5 {[%clk 0:01:25.8]} 43.
d6 {[%clk 0:00:49.7]} 43... c3 {[%clk 0:01:25.3]} 44. bxc3 {[%clk 0:00:48.2]}
44... Be4 {[%clk 0:01:27.2]} 45. Ra7+ {[%clk 0:00:49.1]} 1-0

[Event "*** Titled Tuesday Blitz AM"]
[Site "Chess.com"]
[Date "2020.01.07"]
[Round "1"]
[White "fireheart92"]
[Black "GelmanAlexander"]
[Result "1-0"]
[WhiteElo "2903"]
[BlackElo "2499"]
[TimeControl "180+2"]
[EndTime "9:07:13 PST"]
[Termination "fireheart92 won on time"]

1. d4 {[%clk 0:02:56.9]} 1... Nf6 {[%clk 0:02:56.6]} 2. c4 {[%clk 0:02:57.8]}
2... c5 {[%clk 0:02:56.1]} 3. Nf3 {[%clk 0:02:57.1]} 3... cxd4 {[%clk
0:02:57.1]} 4. Nxd4 {[%clk 0:02:58.6]} 4... b6 {[%clk 0:02:58.9]} 5. f3 {[%clk
0:02:59]} 5... Bb7 {[%clk 0:03:00.2]} 6. e4 {[%clk 0:02:59.7]} 6... d6 {[%clk
0:03:01.9]} 7. Nc3 {[%clk 0:03:00.8]} 7... Nbd7 {[%clk 0:03:03.4]} 8. Be2 {[%clk
0:03:01.9]} 8... a6 {[%clk 0:03:04.3]} 9. Be3 {[%clk 0:03:02.9]} 9... e6 {[%clk
0:03:05.6]} 10. O-O {[%clk 0:03:03.7]} 10... Rc8 {[%clk 0:03:03.8]} 11. Qd2
{[%clk 0:03:04.6]} 11... h6 {[%clk 0:03:03.2]} 12. a4 {[%clk 0:03:05.6]} 12...
g5 {[%clk 0:03:02.6]} 13. a5 {[%clk 0:03:06.1]} 13... bxa5 {[%clk 0:03:03.9]}
14. Nb3 {[%clk 0:03:06.3]} 14... Rg8 {[%clk 0:03:04.7]} 15. Nxa5 {[%clk
0:03:07]} 15... Ba8 {[%clk 0:03:06.2]} 16. b4 {[%clk 0:03:01]} 16... g4 {[%clk
0:03:07]} 17. f4 {[%clk 0:03:01.4]} 17... Nxe4 {[%clk 0:03:05.4]} 18. Nxe4
{[%clk 0:03:02.3]} 18... Bxe4 {[%clk 0:03:07.3]} 19. c5 {[%clk 0:03:03.1]} 19...
dxc5 {[%clk 0:02:44.2]} 20. Bxa6 {[%clk 0:03:04]} 20... Rb8 {[%clk 0:01:27.4]}
21. Rfd1 {[%clk 0:02:29.4]} 21... g3 {[%clk 0:01:10.3]} 22. h3 {[%clk
0:02:29.6]} 22... Rxb4 {[%clk 0:00:50.3]} 23. Qe2 {[%clk 0:02:15.6]} 23... f5
{[%clk 0:00:29.5]} 24. Qh5+ {[%clk 0:02:03.8]} 24... Ke7 {[%clk 0:00:24.1]} 25.
Bxc5+ {[%clk 0:01:34.3]} 25... Nxc5 {[%clk 0:00:20.1]} 26. Qh4+ {[%clk
0:01:34.5]} 26... Kf7 {[%clk 0:00:05.9]} 27. Rxd8 {[%clk 0:01:34.8]} 27... Nd3
{[%clk 0:00:02.2]} 28. Qh5+ {[%clk 0:01:24.8]} 28... Kg7 {[%clk 0:00:03]} 29.
Rd7+ {[%clk 0:01:23.3]} 29... Kh8 {[%clk 0:00:03.6]} 30. Bxd3 {[%clk 0:01:23.1]}
30... Bc5+ {[%clk 0:00:04.2]} 31. Kh1 {[%clk 0:01:23.9]} 31... Bxg2+ {[%clk
0:00:03.9]} 32. Kxg2 {[%clk 0:01:24.8]} 32... Rb2+ {[%clk 0:00:04.9]} 33. Be2
{[%clk 0:01:25]} 1-0

[Event "*** Titled Tuesday Blitz AM"]
[Site "Chess.com"]
[Date "2020.01.07"]
[Round "1"]
[White "ViennaRocket"]
[Black "temus_galaktionov"]
[Result "0-1"]
[WhiteElo "2383"]
[BlackElo "2735"]
[TimeControl "180+2"]
[EndTime "9:07:15 PST"]
[Termination "temus_galaktionov won by resignation"]

1. d4 {[%clk 0:02:34.1]} 1... c6 {[%clk 0:03:01.9]} 2. c4 {[%clk 0:02:34.9]}
2... g6 {[%clk 0:02:54.4]} 3. Nc3 {[%clk 0:02:35.5]} 3... Bg7 {[%clk 0:02:54.2]}
4. e4 {[%clk 0:02:36.9]} 4... d6 {[%clk 0:02:53.7]} 5. Nf3 {[%clk 0:02:37]} 5...
Nd7 {[%clk 0:02:53.1]} 6. Be2 {[%clk 0:02:38.2]} 6... e5 {[%clk 0:02:53.6]} 7.
O-O {[%clk 0:02:37.8]} 7... Ngf6 {[%clk 0:02:53.9]} 8. h3 {[%clk 0:02:38.9]}
8... O-O {[%clk 0:02:54.4]} 9. dxe5 {[%clk 0:02:38.6]} 9... dxe5 {[%clk
0:02:54.9]} 10. b3 {[%clk 0:02:37.8]} 10... Qe7 {[%clk 0:02:55.2]} 11. a4 {[%clk
0:02:37.9]} 11... Rd8 {[%clk 0:02:55.5]} 12. Ba3 {[%clk 0:02:38.5]} 12... Qe8
{[%clk 0:02:56.6]} 13. Qc1 {[%clk 0:02:39.2]} 13... Nh5 {[%clk 0:02:57.3]} 14.
Rd1 {[%clk 0:02:39.2]} 14... Nf4 {[%clk 0:02:56.4]} 15. Bf1 {[%clk 0:02:40.3]}
15... Nf6 {[%clk 0:02:56.5]} 16. Kh2 {[%clk 0:02:38.3]} 16... Rxd1 {[%clk
0:02:52.4]} 17. Qxd1 {[%clk 0:02:38.6]} 17... N6h5 {[%clk 0:02:44.9]} 18. Qd2
{[%clk 0:02:37.4]} 18... Ne6 {[%clk 0:02:41.9]} 19. Ne2 {[%clk 0:02:36.2]} 19...
Nhf4 {[%clk 0:02:32.4]} 20. Nxf4 {[%clk 0:02:35.4]} 20... Nxf4 {[%clk
0:02:32.4]} 21. Rd1 {[%clk 0:02:35.1]} 21... Be6 {[%clk 0:02:32.8]} 22. Bd6
{[%clk 0:02:33.5]} 22... f6 {[%clk 0:02:32.9]} 23. Qb4 {[%clk 0:02:32]} 23...
Qf7 {[%clk 0:02:29.6]} 24. a5 {[%clk 0:02:31.4]} 24... a6 {[%clk 0:02:29.5]} 25.
Bc5 {[%clk 0:02:24.2]} 25... g5 {[%clk 0:02:30.1]} 26. Be3 {[%clk 0:02:22.7]}
26... Bf8 {[%clk 0:02:26]} 27. Qd2 {[%clk 0:02:23]} 27... Ng6 {[%clk 0:02:22.4]}
28. g3 {[%clk 0:02:22.6]} 28... h5 {[%clk 0:02:22]} 29. Be2 {[%clk 0:02:20.7]}
29... g4 {[%clk 0:02:21]} 30. hxg4 {[%clk 0:02:17.5]} 30... hxg4 {[%clk
0:02:22.9]} 31. Ne1 {[%clk 0:02:07.1]} 31... Qh7+ {[%clk 0:02:21.5]} 32. Kg1
{[%clk 0:02:06.5]} 32... Be7 {[%clk 0:02:20.6]} 33. Bf1 {[%clk 0:01:53.4]} 33...
Kf7 {[%clk 0:02:20.5]} 34. Bg2 {[%clk 0:01:54.6]} 34... Rh8 {[%clk 0:02:20]} 35.
Kf1 {[%clk 0:01:55.7]} 35... Qh2 {[%clk 0:02:20]} 36. Ke2 {[%clk 0:01:56.2]}
36... Rd8 {[%clk 0:02:18.4]} 37. Qc2 {[%clk 0:01:56.5]} 37... Rxd1 {[%clk
0:02:13.1]} 38. Kxd1 {[%clk 0:01:52.2]} 38... Nf8 {[%clk 0:02:09.7]} 39. Qd2
{[%clk 0:01:45.6]} 39... Nd7 {[%clk 0:02:09.7]} 40. Bf1 {[%clk 0:01:42.5]} 40...
Qh1 {[%clk 0:02:02.7]} 41. Bd3 {[%clk 0:01:30.4]} 41... Nc5 {[%clk 0:02:02.7]}
42. Bxc5 {[%clk 0:01:31.3]} 42... Bxc5 {[%clk 0:02:03]} 43. Kc2 {[%clk
0:01:30.9]} 43... Qg1 {[%clk 0:01:58]} 44. f4 {[%clk 0:01:22.3]} 44... gxf3
{[%clk 0:01:45.8]} 45. Nxf3 {[%clk 0:01:22.7]} 45... Qxg3 {[%clk 0:01:46.2]} 46.
Ne1 {[%clk 0:01:05.7]} 46... Bf2 {[%clk 0:01:44.7]} 47. Kd1 {[%clk 0:01:05.2]}
47... Bg4+ {[%clk 0:01:43.6]} 48. Be2 {[%clk 0:01:02.3]} 48... Bxe1 {[%clk
0:01:43.6]} 49. Qxe1 {[%clk 0:01:03.4]} 49... Qxe1+ {[%clk 0:01:43.7]} 50. Kxe1
{[%clk 0:01:04.5]} 50... Bxe2 {[%clk 0:01:45.4]} 51. Kxe2 {[%clk 0:01:06]} 51...
Kg6 {[%clk 0:01:46.8]} 52. Kf3 {[%clk 0:01:07.3]} 52... Kg5 {[%clk 0:01:48]} 53.
Kg3 {[%clk 0:01:08.1]} 53... f5 {[%clk 0:01:48.2]} 54. Kf3 {[%clk 0:01:08.6]}
54... f4 {[%clk 0:01:48.8]} 55. Kf2 {[%clk 0:01:06.1]} 55... Kg4 {[%clk
0:01:49.2]} 56. Kg2 {[%clk 0:01:07.4]} 56... f3+ {[%clk 0:01:50]} 0-1

[Event "*** Titled Tuesday Blitz AM"]
[Site "Chess.com"]
[Date "2020.01.07"]
[Round "1"]
[White "muran29"]
[Black "hansen"]
[Result "0-1"]
[WhiteElo "2504"]
[BlackElo "2912"]
[TimeControl "180+2"]
[EndTime "9:07:16 PST"]
[Termination "hansen won by resignation"]

1. d4 {[%clk 0:02:59.5]} 1... Nf6 {[%clk 0:02:55]} 2. c4 {[%clk 0:02:57.1]} 2...
e6 {[%clk 0:02:49.7]} 3. Nf3 {[%clk 0:02:55.4]} 3... d5 {[%clk 0:02:44.7]} 4.
Nc3 {[%clk 0:02:56.1]} 4... c6 {[%clk 0:02:44.6]} 5. Bg5 {[%clk 0:02:55.5]} 5...
h6 {[%clk 0:02:43.1]} 6. Bh4 {[%clk 0:02:56.1]} 6... Nbd7 {[%clk 0:02:41]} 7.
cxd5 {[%clk 0:02:56.8]} 7... exd5 {[%clk 0:02:39.5]} 8. e3 {[%clk 0:02:58.1]}
8... Be7 {[%clk 0:02:40.4]} 9. Bd3 {[%clk 0:02:59.2]} 9... O-O {[%clk
0:02:41.5]} 10. O-O {[%clk 0:03:00.2]} 10... Ne4 {[%clk 0:02:42]} 11. Bxe7
{[%clk 0:02:37.5]} 11... Qxe7 {[%clk 0:02:42.9]} 12. Qc2 {[%clk 0:02:38.8]}
12... f5 {[%clk 0:02:42.5]} 13. Rae1 {[%clk 0:02:37.5]} 13... a5 {[%clk
0:02:40.2]} 14. Na4 {[%clk 0:02:23.1]} 14... g6 {[%clk 0:02:26.1]} 15. Nd2
{[%clk 0:02:12.1]} 15... Qb4 {[%clk 0:02:14.1]} 16. Nxe4 {[%clk 0:01:42.2]}
16... fxe4 {[%clk 0:02:12]} 17. Be2 {[%clk 0:01:43.4]} 17... Kg7 {[%clk
0:02:12.3]} 18. Nc5 {[%clk 0:01:41.3]} 18... Nxc5 {[%clk 0:02:05.5]} 19. Qxc5
{[%clk 0:01:42]} 19... Qxc5 {[%clk 0:01:48.8]} 20. dxc5 {[%clk 0:01:42.9]} 20...
a4 {[%clk 0:01:50.2]} 21. Rc1 {[%clk 0:01:38.3]} 21... Ra5 {[%clk 0:01:48.5]}
22. Rfd1 {[%clk 0:01:37.5]} 22... Kf6 {[%clk 0:01:48.8]} 23. Rd4 {[%clk
0:01:38.1]} 23... Ke5 {[%clk 0:01:49.7]} 24. Kf1 {[%clk 0:01:30.6]} 24... Bd7
{[%clk 0:01:39]} 25. Ke1 {[%clk 0:01:31.7]} 25... b6 {[%clk 0:01:29.4]} 26. Rb4
{[%clk 0:01:05.8]} 26... bxc5 {[%clk 0:01:29]} 27. Rb7 {[%clk 0:01:06]} 27...
Kd6 {[%clk 0:01:29.8]} 28. Rc3 {[%clk 0:00:51.8]} 28... Raa8 {[%clk 0:01:24.6]}
29. f3 {[%clk 0:00:36.7]} 29... exf3 {[%clk 0:01:23]} 30. Bxf3 {[%clk
0:00:38.3]} 30... Rfb8 {[%clk 0:01:21.7]} 31. Rxb8 {[%clk 0:00:34.2]} 31... Rxb8
{[%clk 0:01:23.6]} 32. Rc2 {[%clk 0:00:34.9]} 32... Bf5 {[%clk 0:01:20.9]} 33.
Rd2 {[%clk 0:00:29.5]} 33... Ke5 {[%clk 0:01:22]} 34. Kf2 {[%clk 0:00:14]} 34...
c4 {[%clk 0:01:19.9]} 35. h3 {[%clk 0:00:13.1]} 35... a3 {[%clk 0:01:17.4]} 36.
bxa3 {[%clk 0:00:14.2]} 36... c3 {[%clk 0:01:18.9]} 37. Re2 {[%clk 0:00:15.1]}
0-1

[Event "*** Titled Tuesday Blitz AM"]
[Site "Chess.com"]
[Date "2020.01.07"]
[Round "1"]
[White "NewBornNow"]
[Black "shanemelaughcm"]
[Result "1-0"]
[WhiteElo "2701"]
[BlackElo "2319"]
[TimeControl "180+2"]
[EndTime "9:07:17 PST"]
[Termination "NewBornNow won by resignation"]

1. e4 {[%clk 0:03:01.4]} 1... d6 {[%clk 0:02:58.9]} 2. d4 {[%clk 0:03:01.7]}
2... Nf6 {[%clk 0:02:59.6]} 3. Nc3 {[%clk 0:03:01.3]} 3... Nbd7 {[%clk
0:03:00.2]} 4. f4 {[%clk 0:03:01.4]} 4... e5 {[%clk 0:03:01.6]} 5. dxe5 {[%clk
0:03:01.7]} 5... dxe5 {[%clk 0:03:02.3]} 6. Nf3 {[%clk 0:03:02.5]} 6... Bb4
{[%clk 0:02:45.8]} 7. Bd3 {[%clk 0:02:58.8]} 7... Qe7 {[%clk 0:02:43.7]} 8. O-O
{[%clk 0:02:58.3]} 8... O-O {[%clk 0:02:39.9]} 9. Kh1 {[%clk 0:02:47.5]} 9... c6
{[%clk 0:02:37.9]} 10. Qe1 {[%clk 0:02:26.1]} 10... Bd6 {[%clk 0:02:15.5]} 11.
f5 {[%clk 0:02:19.9]} 11... Ne8 {[%clk 0:02:13.5]} 12. g4 {[%clk 0:02:19.1]}
12... Nc5 {[%clk 0:02:14.2]} 13. g5 {[%clk 0:02:19.4]} 13... f6 {[%clk
0:02:11.2]} 14. Rg1 {[%clk 0:02:12]} 14... Nxd3 {[%clk 0:02:11.6]} 15. cxd3
{[%clk 0:02:11.5]} 15... Bc5 {[%clk 0:02:07]} 16. Rg3 {[%clk 0:02:11.2]} 16...
fxg5 {[%clk 0:01:54.8]} 17. Bxg5 {[%clk 0:02:11]} 17... Nf6 {[%clk 0:01:54.7]}
18. Rh3 {[%clk 0:01:57.4]} 18... h6 {[%clk 0:00:55.2]} 19. Bh4 {[%clk
0:01:45.1]} 19... Qf7 {[%clk 0:00:51.8]} 20. Nxe5 {[%clk 0:01:42]} 20... Qh5
{[%clk 0:00:51]} 21. Qe2 {[%clk 0:01:31]} 21... Qe8 {[%clk 0:00:26.7]} 22. Ng6
{[%clk 0:01:28.1]} 22... Rf7 {[%clk 0:00:26.7]} 23. Rf1 {[%clk 0:01:26.1]} 23...
Bd4 {[%clk 0:00:26.7]} 24. Qg2 {[%clk 0:01:22.3]} 24... Be5 {[%clk 0:00:10.6]}
25. Nxe5 {[%clk 0:01:20.5]} 25... Qxe5 {[%clk 0:00:12.5]} 26. Bg3 {[%clk
0:01:19.8]} 26... Qc5 {[%clk 0:00:07.2]} 27. Rxh6 {[%clk 0:01:14.9]} 27... Ng4
{[%clk 0:00:04.9]} 28. Rh4 {[%clk 0:01:06.7]} 28... Ne3 {[%clk 0:00:04.3]} 29.
Qg1 {[%clk 0:01:06.1]} 29... Qb6 {[%clk 0:00:03.6]} 30. Bf2 {[%clk 0:01:05.5]}
30... Nxf1 {[%clk 0:00:04.7]} 31. Bxb6 {[%clk 0:01:05.8]} 31... axb6 {[%clk
0:00:06.6]} 32. Qxf1 {[%clk 0:01:05.7]} 1-0

[Event "*** Titled Tuesday Blitz AM"]
[Site "Chess.com"]
[Date "2020.01.07"]
[Round "1"]
[White "Justmig"]
[Black "enkhtuul"]
[Result "1-0"]
[WhiteElo "2708"]
[BlackElo "2345"]
[TimeControl "180+2"]
[EndTime "9:07:19 PST"]
[Termination "Justmig won by resignation"]

1. d4 {[%clk 0:03:01.1]} 1... Nf6 {[%clk 0:03:00.3]} 2. Bg5 {[%clk 0:03:01.5]}
2... Ne4 {[%clk 0:03:00]} 3. Bf4 {[%clk 0:03:02.4]} 3... c5 {[%clk 0:03:00.3]}
4. f3 {[%clk 0:03:03.2]} 4... Nf6 {[%clk 0:03:01.2]} 5. dxc5 {[%clk 0:03:03.6]}
5... Qa5+ {[%clk 0:02:59]} 6. Nc3 {[%clk 0:03:04.7]} 6... Qxc5 {[%clk
0:02:57.2]} 7. e4 {[%clk 0:03:06.2]} 7... d6 {[%clk 0:02:56.1]} 8. Qd2 {[%clk
0:03:07.4]} 8... g6 {[%clk 0:02:56.4]} 9. O-O-O {[%clk 0:03:08.2]} 9... Bg7
{[%clk 0:02:57.3]} 10. g4 {[%clk 0:03:09.8]} 10... Nc6 {[%clk 0:02:54.9]} 11. h4
{[%clk 0:03:05.5]} 11... h5 {[%clk 0:02:55.6]} 12. g5 {[%clk 0:03:06]} 12... Nd7
{[%clk 0:01:51.3]} 13. Nd5 {[%clk 0:03:06.5]} 13... Nd4 {[%clk 0:01:41.7]} 14.
Be3 {[%clk 0:02:36.4]} 14... e5 {[%clk 0:01:29.6]} 15. b4 {[%clk 0:02:06.3]}
15... Qc6 {[%clk 0:01:28.7]} 16. Bxd4 {[%clk 0:02:03.8]} 16... exd4 {[%clk
0:01:29.3]} 17. Bb5 {[%clk 0:02:05]} 17... O-O {[%clk 0:01:15.5]} 18. Bxc6
{[%clk 0:02:05.8]} 18... bxc6 {[%clk 0:01:16.4]} 19. Ne7+ {[%clk 0:02:00]} 19...
Kh7 {[%clk 0:01:17.4]} 20. Ne2 {[%clk 0:01:48.3]} 20... c5 {[%clk 0:01:15.9]}
21. bxc5 {[%clk 0:01:32.3]} 21... dxc5 {[%clk 0:01:17.8]} 22. Nxc8 {[%clk
0:01:30.5]} 22... Raxc8 {[%clk 0:01:18]} 23. f4 {[%clk 0:01:32.1]} 23... f5
{[%clk 0:01:15.7]} 24. e5 {[%clk 0:01:33]} 24... Nb6 {[%clk 0:01:15.7]} 25. Qd3
{[%clk 0:01:18.5]} 25... Rfd8 {[%clk 0:01:15.9]} 26. c4 {[%clk 0:01:19.3]} 26...
Nd7 {[%clk 0:01:10]} 27. Kc2 {[%clk 0:01:18.2]} 27... Nf8 {[%clk 0:01:09.8]} 28.
Rb1 {[%clk 0:01:17.6]} 28... Rc7 {[%clk 0:01:10.6]} 29. Rb5 {[%clk 0:01:12.6]}
29... Ne6 {[%clk 0:01:11.4]} 30. Rhb1 {[%clk 0:01:13.6]} 30... Rdd7 {[%clk
0:01:12.2]} 31. Kd1 {[%clk 0:01:09]} 31... a6 {[%clk 0:01:12.2]} 32. Rb6 {[%clk
0:01:09.3]} 32... Re7 {[%clk 0:01:12]} 33. Rxa6 {[%clk 0:01:08.6]} 33... Nd8
{[%clk 0:01:06.9]} 34. Rbb6 {[%clk 0:01:06.9]} 34... Bxe5 {[%clk 0:00:56.7]} 35.
fxe5 {[%clk 0:01:05.5]} 35... Rxe5 {[%clk 0:00:58.6]} 36. Rxg6 {[%clk
0:01:06.6]} 36... Nf7 {[%clk 0:00:58.3]} 37. Rgf6 {[%clk 0:01:02.7]} 37... Rce7
{[%clk 0:00:55.7]} 38. Rxf7+ {[%clk 0:01:00.3]} 38... Rxf7 {[%clk 0:00:56.1]}
39. g6+ {[%clk 0:01:01.8]} 39... Kg7 {[%clk 0:00:57.5]} 40. gxf7 {[%clk
0:01:03.1]} 40... Kxf7 {[%clk 0:00:59.4]} 41. Nf4 {[%clk 0:01:01.6]} 1-0

[Event "*** Titled Tuesday Blitz AM"]
[Site "Chess.com"]
[Date "2020.01.07"]
[Round "1"]
[White "Firouzja2003"]
[Black "Alopekos"]
[Result "1-0"]
[WhiteElo "3088"]
[BlackElo "2525"]
[TimeControl "180+2"]
[EndTime "9:07:20 PST"]
[Termination "Firouzja2003 won by resignation"]

1. e4 {[%clk 0:03:01.9]} 1... c5 {[%clk 0:03:00.7]} 2. Nf3 {[%clk 0:03:03.3]}
2... Nc6 {[%clk 0:03:02.2]} 3. c3 {[%clk 0:03:02.4]} 3... Nf6 {[%clk 0:02:55.4]}
4. e5 {[%clk 0:03:01.2]} 4... Nd5 {[%clk 0:02:56.1]} 5. d4 {[%clk 0:03:02.5]}
5... cxd4 {[%clk 0:02:52.9]} 6. Bc4 {[%clk 0:03:03]} 6... Nb6 {[%clk 0:02:46]}
7. Bb3 {[%clk 0:03:03.4]} 7... e6 {[%clk 0:02:35.5]} 8. cxd4 {[%clk 0:03:03.3]}
8... d6 {[%clk 0:02:34.5]} 9. exd6 {[%clk 0:02:55.5]} 9... Bxd6 {[%clk
0:02:34.7]} 10. O-O {[%clk 0:02:56.1]} 10... O-O {[%clk 0:02:36.1]} 11. Nc3
{[%clk 0:02:56]} 11... Ne7 {[%clk 0:02:23.6]} 12. Ne4 {[%clk 0:02:49]} 12...
Nbd5 {[%clk 0:02:13.6]} 13. Bg5 {[%clk 0:02:40.8]} 13... h6 {[%clk 0:01:57.1]}
14. Bh4 {[%clk 0:02:36.5]} 14... Bc7 {[%clk 0:01:53.4]} 15. Rc1 {[%clk
0:02:35.4]} 15... b6 {[%clk 0:01:40.1]} 16. Re1 {[%clk 0:02:16.2]} 16... Bf4
{[%clk 0:01:36.4]} 17. Rc2 {[%clk 0:01:58.4]} 17... Bb7 {[%clk 0:01:29.5]} 18.
Ne5 {[%clk 0:01:57.2]} 18... Rc8 {[%clk 0:01:19.2]} 19. Rxc8 {[%clk 0:01:56.8]}
19... Qxc8 {[%clk 0:01:19.6]} 20. Nd6 {[%clk 0:01:56.4]} 20... Qb8 {[%clk
0:01:17.7]} 21. Nxb7 {[%clk 0:01:53.6]} 21... Qxb7 {[%clk 0:01:17.1]} 22. Qf3
{[%clk 0:01:54.4]} 22... Bg5 {[%clk 0:01:03.5]} 23. Bxg5 {[%clk 0:01:45.5]}
23... hxg5 {[%clk 0:01:04.4]} 24. Qg4 {[%clk 0:01:44.9]} 24... Nf4 {[%clk
0:00:54.9]} 25. Qxg5 {[%clk 0:01:39.3]} 25... Ned5 {[%clk 0:00:53.4]} 26. Qg4
{[%clk 0:01:29.2]} 26... f6 {[%clk 0:00:47.9]} 27. Ng6 {[%clk 0:01:20.9]} 27...
f5 {[%clk 0:00:45.1]} 28. Qg5 {[%clk 0:01:18.3]} 28... Qf7 {[%clk 0:00:39]} 29.
Nxf4 {[%clk 0:01:13.3]} 29... Qf6 {[%clk 0:00:16.2]} 30. Qxf6 {[%clk 0:01:12.6]}
30... Rxf6 {[%clk 0:00:18.1]} 31. Nxd5 {[%clk 0:01:13.1]} 31... exd5 {[%clk
0:00:17.6]} 32. g3 {[%clk 0:01:13]} 1-0